[Event "2nd Goa GM Open 2019"]
[Site "Goa"]
[Date "2019.06.19"]
[Round "3.14"]
[White "Mohammad Nubairshah Shaikh"]
[Black "Mari Arul, S.."]
[Result "1-0"]
[ECO "E32"]
[WhiteElo "2436"]
[BlackElo "2175"]
[Annotator "NA"]
[PlyCount "118"]
[EventDate "2019.06.17"]
[EventType "swiss"]
[EventCountry "IND"]
[SourceTitle "playchess.com"]
[Source "ChessBase"]
[SourceQuality "1"]
[TimeControl "5400+30"]

1. d4 {[%emt 0:00:08]} Nf6 {[%emt 0:00:22]} 2. c4 {[%emt 0:00:03]} e6 {[%emt 0:01:34]} 3. Nc3 {[%emt 0:00:03]} Bb4 {[%emt 0:00:56]} 4. Qc2 {[%emt 0:00:04]} O-O {[%emt 0:04:30]} 5. e4 {[%emt 0:00:02]} d5 {[%emt 0:00:42]} 6. e5 {[%emt 0:00:03]} Ne4 {[%emt 0:00:23]} 7. Bd3 {[%emt 0:00:03]} c5 {[%emt 0:01:45]} 8. Nge2 {[%emt 0:00:12]} cxd4 {[%emt 0:01:23]} 9. Nxd4 {[%emt 0:00:10]} Nd7 {[%emt 0:00:58]} 10. Bf4 {[%emt 0:00:16]} Ndc5 {[%emt 0:02:08]} 11. O-O {[%emt 0:00:56]} Bxc3 {[%emt 0:00:52]} 12. bxc3 {[%emt 0:00:03]} Bd7 {[%emt 0:00:45]} 13. Be2 {[%emt 0:00:46]} Na4 {[%emt 0:04:28]} 14. cxd5 {[%emt 0:00:50]} exd5 {[%emt 0:00:13]} 15. c4 {[%emt 0:00:03]} Rc8 {[%emt 0:02:06]} 16. Rac1 {[%emt 0:07:30]} Nec3 {[%emt 0:04:15]} 17. Bd3 {[%emt 0:08:41]} h6 {[%emt 0:01:23]} 18. cxd5 {[%emt 0:19:30]} Nxd5 {[%emt 0:02:54]} 19. Qd2 {[%emt 0:00:09]} Nxf4 {[%emt 0:21:34]} 20. Qxf4 {[%emt 0:00:02]} Nc5 {[%emt 0:03:40]} 21. Bb1 {[%emt 0:03:42]} Qg5 {[%emt 0:03:50]} 22. Qxg5 {[%emt 0:04:01]} hxg5 {[%emt 0:00:31]} 23. g3 {[%emt 0:19:05]} g6 {[%emt 0:08:35]} 24. Rfe1 {[%emt 0:05:34]} Rfd8 {[%emt 0:06:50]} 25. Nf3 {[%emt 0:04:25]} Ne6 {[%emt 0:10:56]} 26. Be4 {[%emt 0:01:26]} Bc6 {[%emt 0:02:55]} 27. Bxc6 {[%emt 0:10:25]} Rxc6 {[%emt 0:00:14]} 28. Rxc6 {[%emt 0:00:51]} bxc6 {[%emt 0:00:07]} 29. h3 {[%emt 0:00:02]} Rd5 {[%emt 0:03:58]} 30. Rc1 {[%emt 0:00:29]} Ra5 {[%emt 0:00:34]} 31. Rxc6 {[%emt 0:06:48]} Rxa2 {[%emt 0:00:09]} 32. Rc8+ {[%emt 0:00:01]} Kg7 {[%emt 0:00:32]} 33. Nh2 {[%emt 0:00:02]} Rd2 {[%emt 0:03:31]} 34. Ra8 {[%emt 0:00:02]} Rd5 {[%emt 0:02:50]} 35. Ng4 {[%emt 0:01:47]} a5 {[%emt 0:00:19]} 36. Kg2 {[%emt 0:00:02]} Nf8 {[%emt 0:01:58]} 37. Kf3 {[%emt 0:00:54]} Nd7 {[%emt 0:00:28]} 38. Ke4 {[%emt 0:00:18]} Rb5 {[%emt 0:00:55]} 39. Ra7 {[%emt 0:00:50]} Nc5+ {[%emt 0:00:43]} 40. Kd5 {[%emt 0:00:16]} Ne6+ {[%emt 0:00:34]} 41. Kc6 {[%emt 0:00:38]} Nd4+ {[%emt 0:00:38]} 42. Kd7 {[%emt 0:00:05]} Rd5+ {[%emt 0:01:12]} 43. Ke8 {[%emt 0:00:08]} Rd8+ {[%emt 0:00:37]} 44. Kxd8 {[%emt 0:01:50]} Nc6+ {[%emt 0:00:08]} 45. Kc7 {[%emt 0:01:10]} Nxa7 {[%emt 0:00:07]} 46. Kb6 {[%emt 0:00:01]} Nc8+ {[%emt 0:00:17]} 47. Kxa5 {[%emt 0:00:01]} Ne7 {[%emt 0:00:32]} 48. Kb5 {[%emt 0:02:06]} Nf5 {[%emt 0:01:23]} 49. Kc5 {[%emt 0:00:04]} Kf8 {[%emt 0:00:25]} 50. Nf6 {[%emt 0:00:07]} Ng7 {[%emt 0:00:32]} 51. Nh7+ {[%emt 0:00:11]} Ke7 {[%emt 0:00:45]} 52. Nxg5 {[%emt 0:00:03]} f6 {[%emt 0:00:08]} 53. exf6+ {[%emt 0:02:13]} Kxf6 {[%emt 0:00:10]} 54. Nf3 {[%emt 0:00:01]} Kf5 {[%emt 0:00:35]} 55. Kd5 {[%emt 0:00:01]} g5 {[%emt 0:00:56]} 56. Nd4+ {[%emt 0:00:20]} Kf6 {[%emt 0:00:13]} 57. Ke4 {[%emt 0:00:42]} Ne8 {[%emt 0:00:08]} 58. Nf5 {[%emt 0:00:02]} Nc7 {[%emt 0:00:12]} 59. Ne3 {[%emt 0:00:33]} Ne8 1-0

[Event "2nd Goa GM Open 2019"]
[Site "Goa"]
[Date "2019.06.19"]
[Round "3.15"]
[White "Sammed Jaykumar, Shete"]
[Black "Mezanur, Rahman"]
[Result "1-0"]
[ECO "C50"]
[WhiteElo "2431"]
[BlackElo "1886"]
[Annotator "NA"]
[PlyCount "55"]
[EventDate "2019.06.17"]
[EventType "swiss"]
[EventCountry "IND"]
[SourceTitle "playchess.com"]
[Source "ChessBase"]
[SourceQuality "1"]
[TimeControl "5400+30"]

1. e4 {[%emt 0:00:00]} e5 {[%emt 0:02:10]} 2. Nf3 {[%emt 0:00:00]} Nc6 {[%emt 0:00:48]} 3. Bc4 {[%emt 0:00:00]} Nf6 {[%emt 0:01:40]} 4. d3 {[%emt 0:00:05]} Bc5 {[%emt 0:02:12]} 5. c3 {[%emt 0:00:08]} d6 {[%emt 0:00:41]} 6. Bb3 {[%emt 0:00:31]} a6 {[%emt 0:02:05]} 7. h3 {[%emt 0:01:03]} Ba7 {[%emt 0:00:21]} 8. Nbd2 {[%emt 0:00:34]} O-O {[%emt 0:00:46]} 9. O-O {[%emt 0:00:58]} d5 {[%emt 0:05:31]} 10. exd5 {[%emt 0:04:26]} Nxd5 {[%emt 0:02:23]} 11. Ne4 {[%emt 0:00:08]} h6 {[%emt 0:01:09]} 12. Bxh6 {[%emt 0:07:31]} Be6 {[%emt 0:04:16]} 13. Bd2 {[%emt 0:04:19]} f6 {[%emt 0:00:28]} 14. Nh4 {[%emt 0:02:13]} g5 {[%emt 0:01:28]} 15. Nf3 {[%emt 0:04:50]} Kg7 {[%emt 0:02:09]} 16. Nh2 {[%emt 0:07:39]} Qd7 {[%emt 0:02:10]} 17. Ng3 {[%emt 0:06:02]} Rh8 {[%emt 0:00:30]} 18. Qf3 {[%emt 0:01:08]} Nce7 {[%emt 0:01:07]} 19. Rfe1 {[%emt 0:02:39]} c6 {[%emt 0:02:56]} 20. Nh5+ {[%emt 0:06:40]} Kg6 {[%emt 0:01:26]} 21. Nxf6 {[%emt 0:01:36]} Nxf6 {[%emt 0:01:19]} 22. Rxe5 {[%emt 0:00:33]} Bxb3 {[%emt 0:01:55]} 23. Rxg5+ {[%emt 0:00:11]} Kf7 {[%emt 0:00:23]} 24. Ng4 {[%emt 0:00:20]} Qd6 {[%emt 0:02:01]} 25. axb3 {[%emt 0:00:38]} Rag8 {[%emt 0:05:09]} 26. Bf4 {[%emt 0:01:53]} Qe6 {[%emt 0:04:46]} 27. Re5 {[%emt 0:00:24]} Qd7 {[%emt 0:02:41]} 28. Bg5 {[%emt 0:00:33]} 1-0

[Event "2nd Goa GM Open 2019"]
[Site "Goa"]
[Date "2019.06.19"]
[Round "3.18"]
[White "Idani, Pouya"]
[Black "Pranesh M"]
[Result "1-0"]
[ECO "A35"]
[WhiteElo "2597"]
[BlackElo "2328"]
[Annotator "ChessBase"]
[PlyCount "135"]
[EventDate "2019.06.17"]
[EventType "swiss"]
[EventCountry "IND"]
[SourceTitle "playchess.com"]
[Source "ChessBase"]
[SourceQuality "1"]
[TimeControl "5400+30"]

1. Nf3 {[%emt 0:00:00]} Nf6 {[%emt 0:00:00]} 2. c4 {[%emt 0:00:00]} c5 {[%emt 0:00:00]} 3. Nc3 {[%emt 0:00:08]} Nc6 {[%emt 0:00:11]} 4. d4 {[%emt 0:00:56]} cxd4 {[%emt 0:00:07]} 5. Nxd4 {[%emt 0:00:03]} d6 {[%emt 0:00:42]} 6. e4 {[%emt 0:00:14]} e6 {[%emt 0:00:33]} 7. Be2 {[%emt 0:00:16]} Be7 {[%emt 0:00:27]} 8. O-O {[%emt 0:00:08]} O-O {[%emt 0:00:13]} 9. Be3 {[%emt 0:00:06]} a6 {[%emt 0:03:11]} 10. Qd2 {[%emt 0:01:51]} Bd7 {[%emt 0:00:25]} 11. f3 {[%emt 0:01:19]} Qc7 {[%emt 0:02:02]} 12. Rac1 {[%emt 0:01:19]} Rfc8 {[%emt 0:01:00]} 13. Rfd1 {[%emt 0:01:06]} Kh8 {[%emt 0:02:31]} 14. Bf1 {[%emt 0:01:19]} Nxd4 {[%emt 0:01:39]} 15. Bxd4 {[%emt 0:00:31]} Qa5 {[%emt 0:01:48]} 16. Qf2 {[%emt 0:02:22]} Qh5 {[%emt 0:02:37]} 17. a4 {[%emt 0:04:51]} Be8 {[%emt 0:03:52]} 18. b3 {[%emt 0:18:15]} Nd7 {[%emt 0:01:45]} 19. Rb1 {[%emt 0:03:20]} a5 {[%emt 0:04:41]} 20. Bd3 {[%emt 0:04:18]} Nc5 {[%emt 0:01:14]} 21. Bc2 {[%emt 0:00:06]} Bc6 {[%emt 0:01:22]} 22. Rd2 {[%emt 0:05:51]} b6 {[%emt 0:03:55]} 23. Re1 {[%emt 0:01:36]} f6 {[%emt 0:02:06]} 24. f4 {[%emt 0:02:02]} Re8 {[%emt 0:01:29]} 25. Re3 {[%emt 0:06:00]} e5 {[%emt 0:01:21]} 26. Rh3 {[%emt 0:00:55]} Qg6 {[%emt 0:03:43]} 27. f5 {[%emt 0:01:54]} Qf7 {[%emt 0:01:34]} 28. Be3 {[%emt 0:05:24]} Rf8 {[%emt 0:05:42]} 29. Qg3 {[%emt 0:04:17]} Be8 {[%emt 0:01:57]} 30. Nd5 {[%emt 0:00:16]} Bd8 {[%emt 0:00:30]} 31. Bxc5 {[%emt 0:05:38]} bxc5 {[%emt 0:01:21]} 32. Rd3 {[%emt 0:01:46]} g5 {[%emt 0:01:19]} 33. fxg6 {[%emt 0:00:11]} Qxg6 {[%emt 0:00:07]} 34. Qf2 {[%emt 0:01:27]} Bd7 {[%emt 0:05:13]} 35. Rdg3 {[%emt 0:02:17]} Qf7 {[%emt 0:00:02]} 36. Rh6 {[%emt 0:00:41]} Be6 {[%emt 0:00:28]} 37. Bd1 {[%emt 0:03:00]} f5 {[%emt 0:13:14]} 38. Bh5 {[%emt 0:03:49]} Qd7 {[%emt 0:00:14]} 39. Bg6 {[%emt 0:00:54]} f4 {[%emt 0:00:15]} 40. Bxh7 {[%emt 0:00:20]} Qxh7 {[%emt 0:00:32]} 41. Rxh7+ {[%emt 0:01:47]} Kxh7 {[%emt 0:00:18]} 42. Qf3 {[%emt 0:03:02]} Kh6 {[%emt 0:00:31]} 43. Rh3+ {[%emt 0:00:04]} Bxh3 {[%emt 0:01:08]} 44. Qxh3+ {[%emt 0:00:04]} Kg5 {[%emt 0:00:56]} 45. Qh7 {[%emt 0:00:49]} Bf6 {[%emt 0:02:34]} 46. h4+ {[%emt 0:00:14]} Kg4 {[%emt 0:00:08]} 47. Qg6+ {[%emt 0:00:12]} Kxh4 {[%emt 0:00:07]} 48. Nxf6 {[%emt 0:00:03]} Rxf6 {[%emt 0:00:12]} 49. Qxf6+ {[%emt 0:00:05]} Kg4 {[%emt 0:00:04]} 50. Qxd6 {[%emt 0:00:09]} f3 {[%emt 0:00:05]} 51. Qxe5 {[%emt 0:00:07]} fxg2 {[%emt 0:00:04]} 52. Kxg2 {[%emt 0:00:08]} Ra6 {[%emt 0:00:01]} 53. Qxc5 {[%emt 0:00:20]} Rg6 {[%emt 0:00:11]} 54. Kf2 {[%emt 0:00:08]} Rf6+ {[%emt 0:00:05]} 55. Ke2 {[%emt 0:00:04]} Rf4 {[%emt 0:00:23]} 56. Qd5 {[%emt 0:00:10]} Kh4 {[%emt 0:00:06]} 57. c5 {[%emt 0:00:05]} Kg4 {[%emt 0:00:19]} 58. c6 {[%emt 0:00:09]} Kg3 {[%emt 0:00:11]} 59. Qg5+ {[%emt 0:00:07]} Rg4 {[%emt 0:00:04]} 60. Qxg4+ {[%emt 0:00:10]} Kxg4 {[%emt 0:00:03]} 61. c7 {[%emt 0:00:14]} Kf4 {[%emt 0:00:03]} 62. Kd3 {[%emt 0:00:32]} Ke5 {[%emt 0:00:06]} 63. c8=Q {[%emt 0:00:39]} Kf4 {[%emt 0:00:22]} 64. Qf5+ {[%emt 0:00:04]} Kg3 65. Ke3 Kh4 {[%emt 0:00:45]} 66. Qg6 {[%emt 0:00:37]} Kh3 {[%emt 0:00:04]} 67. Kf3 {[%emt 0:00:04]} Kh2 {[%emt 0:00:04]} 68. Qg2# {[%emt 0:00:43]} 1-0

[Event "2nd Goa GM Open 2019"]
[Site "Goa"]
[Date "2019.06.19"]
[Round "3.19"]
[White "Stupak, Kirill"]
[Black "Abhishek, Kelkar"]
[Result "1/2-1/2"]
[ECO "D16"]
[WhiteElo "2584"]
[BlackElo "2323"]
[Annotator "ChessBase"]
[PlyCount "67"]
[EventDate "2019.06.17"]
[EventType "swiss"]
[EventCountry "IND"]
[SourceTitle "playchess.com"]
[Source "ChessBase"]
[SourceQuality "1"]
[TimeControl "5400+30"]

1. d4 {[%emt 0:00:00]} d5 {[%emt 0:00:04]} 2. Nf3 {[%emt 0:00:00]} Nf6 {[%emt 0:00:05]} 3. c4 {[%emt 0:00:01]} c6 {[%emt 0:00:06]} 4. Nc3 {[%emt 0:00:05]} dxc4 {[%emt 0:00:13]} 5. a4 {[%emt 0:00:04]} e6 {[%emt 0:00:06]} 6. e3 {[%emt 0:01:30]} c5 {[%emt 0:00:11]} 7. Bxc4 {[%emt 0:00:03]} Nc6 {[%emt 0:00:40]} 8. O-O {[%emt 0:00:12]} Be7 {[%emt 0:00:33]} 9. dxc5 {[%emt 0:05:30]} Qxd1 {[%emt 0:01:51]} 10. Rxd1 {[%emt 0:00:12]} Bxc5 {[%emt 0:00:16]} 11. h3 {[%emt 0:00:43]} O-O {[%emt 0:03:25]} 12. e4 {[%emt 0:00:16]} e5 {[%emt 0:07:40]} 13. Bg5 {[%emt 0:10:27]} h6 {[%emt 0:06:01]} 14. Bxf6 {[%emt 0:01:27]} gxf6 {[%emt 0:00:06]} 15. Nb5 {[%emt 0:00:53]} Rb8 {[%emt 0:04:02]} 16. Rac1 {[%emt 0:01:26]} Bb6 {[%emt 0:07:06]} 17. Nd6 {[%emt 0:02:59]} Be6 {[%emt 0:03:19]} 18. Bxe6 {[%emt 0:12:35]} fxe6 {[%emt 0:00:17]} 19. Nxb7 {[%emt 0:00:04]} Nd4 {[%emt 0:05:00]} 20. Nxd4 {[%emt 0:00:07]} Bxd4 {[%emt 0:01:24]} 21. Rc7 {[%emt 0:00:08]} Rf7 {[%emt 0:01:07]} 22. Rxf7 {[%emt 0:02:05]} Kxf7 {[%emt 0:00:13]} 23. Nd6+ {[%emt 0:00:04]} Ke7 {[%emt 0:00:48]} 24. Nb5 {[%emt 0:00:08]} Bb6 {[%emt 0:00:16]} 25. Rd3 {[%emt 0:02:14]} a6 {[%emt 0:04:47]} 26. Na3 {[%emt 0:00:12]} Rc8 {[%emt 0:01:20]} 27. Rc3 {[%emt 0:04:34]} Rxc3 {[%emt 0:02:56]} 28. bxc3 {[%emt 0:00:14]} Ba5 {[%emt 0:00:08]} 29. Nb1 {[%emt 0:09:14]} Kd6 {[%emt 0:00:44]} 30. Kh2 {[%emt 0:02:38]} Kc5 {[%emt 0:03:53]} 31. Kg3 {[%emt 0:00:02]} Kc4 {[%emt 0:01:08]} 32. Kg4 {[%emt 0:00:07]} Bb6 {[%emt 0:02:07]} 33. f3 {[%emt 0:02:30]} Be3 {[%emt 0:01:49]} 34. Kh5 {[%emt 0:00:27]} 1/2-1/2

[Event "2nd Goa GM Open 2019"]
[Site "Goa"]
[Date "2019.06.19"]
[Round "3.20"]
[White "Anuj Shrivatri"]
[Black "Jojua, Davit"]
[Result "0-1"]
[ECO "E62"]
[WhiteElo "2336"]
[BlackElo "2580"]
[Annotator "ChessBase"]
[PlyCount "66"]
[EventDate "2019.06.17"]
[EventType "swiss"]
[EventCountry "IND"]
[SourceTitle "playchess.com"]
[Source "ChessBase"]
[SourceQuality "1"]
[TimeControl "5400+30"]

1. d4 {[%emt 0:00:00]} Nf6 {[%emt 0:00:00]} 2. c4 {[%emt 0:00:00]} g6 {[%emt 0:00:00]} 3. g3 {[%emt 0:00:00]} Bg7 {[%emt 0:00:00]} 4. Bg2 {[%emt 0:00:00]} O-O {[%emt 0:00:00]} 5. Nf3 {[%emt 0:00:00]} d6 {[%emt 0:00:03]} 6. Nc3 {[%emt 0:00:00]} Nc6 {[%emt 0:00:23]} 7. O-O {[%emt 0:00:08]} e5 {[%emt 0:00:05]} 8. dxe5 {[%emt 0:00:05]} dxe5 {[%emt 0:00:07]} 9. Bg5 {[%emt 0:00:08]} Be6 {[%emt 0:00:12]} 10. Nd2 {[%emt 0:00:13]} Qb8 {[%emt 0:01:50]} 11. Qa4 {[%emt 0:00:29]} Nd7 {[%emt 0:02:09]} 12. Bxc6 {[%emt 0:01:05]} bxc6 {[%emt 0:00:03]} 13. Qxc6 {[%emt 0:00:06]} Qxb2 {[%emt 0:00:25]} 14. Nd5 {[%emt 0:00:12]} e4 {[%emt 0:03:01]} 15. Rab1 {[%emt 0:39:07]} Qxa2 {[%emt 0:06:27]} 16. Rfe1 {[%emt 0:14:28]} h6 {[%emt 0:22:50]} 17. Bf4 {[%emt 0:04:40]} Nb6 {[%emt 0:05:16]} 18. Nb4 Qa4 {[%emt 0:12:23]} 19. Nxe4 {[%emt 0:19:22]} Qxc6 {[%emt 0:04:36]} 20. Nxc6 {[%emt 0:00:04]} Rfe8 {[%emt 0:06:07]} 21. Bxc7 {[%emt 0:07:04]} Nxc4 {[%emt 0:02:37]} 22. Nd6 {[%emt 0:06:26]} Nxd6 {[%emt 0:02:46]} 23. Bxd6 {[%emt 0:00:02]} a5 {[%emt 0:01:47]} 24. e4 {[%emt 0:02:13]} a4 {[%emt 0:01:06]} 25. e5 {[%emt 0:01:03]} a3 {[%emt 0:01:12]} 26. Ra1 {[%emt 0:01:04]} a2 {[%emt 0:00:52]} 27. f4 {[%emt 0:00:03]} Ra6 {[%emt 0:06:39]} 28. Nb4 {[%emt 0:02:40]} Ra4 {[%emt 0:00:44]} 29. Nd3 {[%emt 0:00:16]} Rd4 {[%emt 0:01:44]} 30. Nb4 {[%emt 0:01:25]} Rd2 {[%emt 0:02:59]} 31. Red1 {[%emt 0:00:44]} Rxd1+ {[%emt 0:01:23]} 32. Rxd1 {[%emt 0:00:01]} Rd8 {[%emt 0:00:54]} 33. Nc2 {[%emt 0:01:46]} Bb3 0-1

[Event "2nd Goa GM Open 2019"]
[Site "Goa"]
[Date "2019.06.19"]
[Round "3.21"]
[White "Turov, Maxim"]
[Black "Neelash Saha"]
[Result "1/2-1/2"]
[ECO "D38"]
[WhiteElo "2579"]
[BlackElo "2315"]
[Annotator "ChessBase"]
[PlyCount "61"]
[EventDate "2019.06.17"]
[EventType "swiss"]
[EventCountry "IND"]
[SourceTitle "playchess.com"]
[Source "ChessBase"]
[SourceQuality "1"]
[TimeControl "5400+30"]

1. d4 {[%emt 0:00:00]} Nf6 {[%emt 0:00:07]} 2. Nf3 {[%emt 0:00:00]} e6 {[%emt 0:00:03]} 3. c4 {[%emt 0:00:00]} d5 {[%emt 0:00:05]} 4. Nc3 {[%emt 0:00:00]} Bb4 {[%emt 0:00:03]} 5. Bg5 {[%emt 0:00:01]} h6 {[%emt 0:00:07]} 6. Bxf6 {[%emt 0:00:14]} Qxf6 {[%emt 0:00:05]} 7. Qa4+ {[%emt 0:00:05]} Nc6 {[%emt 0:00:03]} 8. e3 {[%emt 0:00:05]} O-O {[%emt 0:00:20]} 9. Rd1 {[%emt 0:01:23]} Rd8 {[%emt 0:11:56]} 10. Qb3 {[%emt 0:00:49]} Qg6 {[%emt 0:05:56]} 11. h3 {[%emt 0:00:09]} a6 {[%emt 0:14:31]} 12. Bd3 {[%emt 0:04:32]} Qf6 {[%emt 0:00:04]} 13. O-O {[%emt 0:02:05]} dxc4 {[%emt 0:00:11]} 14. Qxc4 {[%emt 0:00:53]} Bd6 {[%emt 0:02:07]} 15. Ne4 {[%emt 0:13:28]} Qe7 {[%emt 0:00:26]} 16. a3 {[%emt 0:10:12]} e5 {[%emt 0:16:34]} 17. d5 {[%emt 0:00:32]} Nb8 {[%emt 0:00:04]} 18. Nxd6 {[%emt 0:06:21]} cxd6 {[%emt 0:00:06]} 19. Rc1 {[%emt 0:00:43]} Nd7 {[%emt 0:00:39]} 20. Qc7 {[%emt 0:09:30]} Kf8 {[%emt 0:01:25]} 21. Bb1 {[%emt 0:00:14]} Nf6 {[%emt 0:01:46]} 22. Qa5 {[%emt 0:00:04]} Bd7 {[%emt 0:00:54]} 23. Rc7 {[%emt 0:07:34]} Rab8 {[%emt 0:01:16]} 24. Rfc1 {[%emt 0:05:04]} Ne8 {[%emt 0:01:39]} 25. R7c3 {[%emt 0:00:52]} Rdc8 {[%emt 0:00:44]} 26. Qb4 {[%emt 0:01:41]} Rxc3 {[%emt 0:06:18]} 27. Rxc3 {[%emt 0:00:09]} b6 {[%emt 0:00:29]} 28. Nd2 {[%emt 0:01:05]} a5 {[%emt 0:00:23]} 29. Qb3 {[%emt 0:00:58]} b5 {[%emt 0:01:02]} 30. Qc2 {[%emt 0:00:25]} Qd8 {[%emt 0:00:35]} 31. b4 {[%emt 0:08:26]} 1/2-1/2

[Event "2nd Goa GM Open 2019"]
[Site "Goa"]
[Date "2019.06.19"]
[Round "3.22"]
[White "Navalgund, Niranjan"]
[Black "Tukhaev, Adam"]
[Result "0-1"]
[ECO "E56"]
[WhiteElo "2326"]
[BlackElo "2527"]
[Annotator "ChessBase"]
[PlyCount "76"]
[EventDate "2019.06.17"]
[EventType "swiss"]
[EventCountry "IND"]
[SourceTitle "playchess.com"]
[Source "ChessBase"]
[SourceQuality "1"]
[TimeControl "5400+30"]

1. d4 {[%emt 0:00:00]} Nf6 {[%emt 0:00:00]} 2. c4 {[%emt 0:00:00]} e6 {[%emt 0:01:25]} 3. Nc3 {[%emt 0:01:42]} Bb4 {[%emt 0:01:24]} 4. e3 {[%emt 0:00:03]} O-O {[%emt 0:00:59]} 5. Bd3 {[%emt 0:00:16]} c5 {[%emt 0:00:44]} 6. Nf3 {[%emt 0:00:09]} d5 {[%emt 0:00:30]} 7. O-O {[%emt 0:00:12]} Nc6 {[%emt 0:05:53]} 8. cxd5 {[%emt 0:15:21]} exd5 {[%emt 0:02:40]} 9. dxc5 {[%emt 0:00:07]} Bxc5 {[%emt 0:06:32]} 10. a3 {[%emt 0:00:15]} Bg4 {[%emt 0:03:28]} 11. Be2 {[%emt 0:07:16]} a6 {[%emt 0:05:12]} 12. b4 {[%emt 0:02:11]} Ba7 {[%emt 0:00:55]} 13. b5 {[%emt 0:01:55]} Na5 {[%emt 0:05:57]} 14. h3 {[%emt 0:01:01]} Bh5 {[%emt 0:00:56]} 15. bxa6 {[%emt 0:00:05]} bxa6 {[%emt 0:00:48]} 16. Nd4 {[%emt 0:08:54]} Bg6 {[%emt 0:09:35]} 17. Bd2 {[%emt 0:03:20]} Re8 {[%emt 0:15:18]} 18. Qa4 {[%emt 0:04:50]} Bb6 {[%emt 0:01:32]} 19. Ra2 {[%emt 0:02:53]} Bc7 {[%emt 0:10:56]} 20. f4 {[%emt 0:05:48]} h5 {[%emt 0:03:36]} 21. Nd1 {[%emt 0:19:43]} Nb7 {[%emt 0:07:50]} 22. Qc6 {[%emt 0:02:05]} Nd6 {[%emt 0:00:03]} 23. f5 {[%emt 0:01:27]} Bh7 {[%emt 0:00:40]} 24. Be1 {[%emt 0:01:31]} Bb6 {[%emt 0:05:30]} 25. Bg3 {[%emt 0:05:02]} Nde4 {[%emt 0:01:26]} 26. Bf4 {[%emt 0:05:24]} Rc8 {[%emt 0:03:16]} 27. Qa4 {[%emt 0:00:25]} Nc5 {[%emt 0:00:02]} 28. Qb4 {[%emt 0:00:42]} Nfe4 {[%emt 0:00:30]} 29. Rc2 {[%emt 0:05:59]} Ba5 {[%emt 0:01:14]} 30. Qb2 {[%emt 0:00:02]} h4 {[%emt 0:00:21]} 31. Kh2 {[%emt 0:01:24]} Ng3 {[%emt 0:00:28]} 32. Bxg3 {[%emt 0:01:11]} hxg3+ {[%emt 0:00:03]} 33. Kg1 {[%emt 0:00:21]} Qd6 {[%emt 0:02:31]} 34. Qc1 {[%emt 0:01:42]} Rc7 {[%emt 0:00:02]} 35. Nb2 {[%emt 0:00:56]} Bb6 {[%emt 0:00:50]} 36. a4 {[%emt 0:01:29]} Nb3 {[%emt 0:00:52]} 37. Qd1 {[%emt 0:02:06]} Rxe3 {[%emt 0:00:15]} 38. Nxb3 {[%emt 0:00:05]} Rxe2+ {[%emt 0:00:43]} 0-1